fUST/lending_fUST_20241106
["ID","MTS","AMOUNT","RATE_DAILY","PERIOD"]
[341364959,1730838643086,-1889.9759574,0.00034045,2]
[341364960,1730838643098,-886.319,0.00034045,2]
[341364961,1730838643109,-1543.90020235,0.00034045,5]
[341364962,1730838643120,-222.05854503,0.00034045,2]
[341364964,1730838643130,-200.0,0.00034045,2]
[341364966,1730838643140,-1240.0,0.00034045,2]
[341364968,1730838643150,-186.68756343,0.00034045,2]
[341364970,1730838643164,-159.84749256,0.00034045,2]
[341364972,1730838643175,-199.999999,0.00034045,2]
[341364974,1730838643184,-225.82007562,0.00038199,15]
[341364976,1730838643194,-382.13814578,0.000382,109]
[341364978,1730838643205,-382.13814575,0.000382,109]
[341364980,1730838643216,-382.13814575,0.000382,109]
[341364983,1730838643228,-382.13814575,0.00039911,119]
[341364985,1730838643238,-500.0,0.00040526,5]
[341364987,1730838643248,-500.0,0.00040526,5]
[341364989,1730838643258,-500.0,0.00040526,5]
[341364991,1730838643268,-500.70409468,0.00040526,5]
[341364993,1730838643279,-500.0,0.00040526,5]
[341364995,1730838643289,-500.0,0.00040526,5]
[341364997,1730838643300,-500.0,0.00040526,5]
[341364999,1730838643312,-500.0,0.00041095,14]
[341365001,1730838643324,-500.0,0.00041095,14]
[341365004,1730838643337,-500.0,0.00041095,14]
[341365006,1730838643348,-500.0,0.00041095,14]
[341365008,1730838643358,-500.0,0.00041095,14]
[341365010,1730838643367,-500.0,0.00041095,14]
[341365012,1730838643378,-500.0,0.00041095,14]
[341365014,1730838643388,-500.0,0.00041095,14]
[341365016,1730838643399,-500.0,0.00041095,14]
[341365018,1730838643410,-156.81233456,0.00041095,14]
[341365020,1730838643422,-230.98713841,0.00041095,7]
[341365022,1730838643432,-500.0,0.00041095,14]
[341365024,1730838643443,-500.0,0.00041095,14]
[341365027,1730838643453,-633.27588737,0.00041095,14]
[341365029,1730838643463,-500.0,0.00041095,14]
[341365031,1730838643478,-500.0,0.00041095,14]
[341365032,1730838643490,-500.0,0.00041095,14]
[341365035,1730838643501,-500.0,0.00041095,14]
[341365037,1730838643512,-500.0,0.00041095,14]
[341365039,1730838643521,-500.0,0.00041095,14]
[341365041,1730838643531,-500.0,0.00041095,14]
[341365043,1730838643540,-500.0,0.00041095,14]
[341365045,1730838643557,-500.0,0.00041095,14]
[341365047,1730838643567,-500.0,0.00041095,14]
[341365049,1730838643577,-500.0,0.00041095,14]
[341365051,1730838643587,-500.0,0.00041095,14]
[341365053,1730838643596,-500.0,0.00041095,14]
[341365055,1730838643607,-618.32,0.00041095,14]
[341365057,1730838643617,-500.0,0.00041095,14]
[341365059,1730838643629,-500.0,0.00041095,14]
[341365061,1730838643639,-500.0,0.00041095,14]
[341365063,1730838643649,-500.0,0.00041095,14]
[341365065,1730838643659,-500.0,0.00041095,14]
[341365067,1730838643668,-500.0,0.00041095,14]
[341365069,1730838643678,-500.0,0.00041095,14]
[341365071,1730838643688,-500.0,0.00041095,14]
[341365074,1730838643699,-500.0,0.00041095,14]
[341365076,1730838643709,-500.0,0.00041095,14]
[341365078,1730838643718,-500.0,0.00041095,14]
[341365080,1730838643728,-500.0,0.00041095,14]
[341365082,1730838643737,-500.0,0.00041095,14]
[341365084,1730838643746,-500.0,0.00041095,14]
[341365086,1730838643755,-500.0,0.00041095,14]
[341365088,1730838643765,-397.81397998,0.00041095,14]
[341365090,1730838643774,-158.77191366,0.00041095,14]
[341365092,1730838643783,-500.0,0.00041095,14]
[341365094,1730838643793,-500.0,0.00041095,14]
[341365096,1730838643802,-500.0,0.00041095,14]
[341365098,1730838643811,-500.0,0.00041095,14]
[341365100,1730838643820,-500.0,0.00041095,14]
[341365102,1730838643829,-482.71858073,0.00041095,14]
[341365104,1730838643839,-565.35,0.00041095,14]
[341365106,1730838643848,-500.0,0.00041095,14]
[341365108,1730838643858,-500.0,0.00041095,14]
[341365110,1730838643867,-500.0,0.00041095,14]
[341365112,1730838643877,-500.0,0.00041095,14]
[341365114,1730838643887,-500.0,0.00041095,14]
[341365116,1730838643896,-500.0,0.00041095,14]
[341365118,1730838643906,-500.0,0.00041095,14]
[341365120,1730838643915,-500.0,0.00041095,14]
[341365122,1730838643925,-500.0,0.00041095,14]
[341365125,1730838643937,-500.0,0.00041095,14]
[341365127,1730838643947,-500.0,0.00041095,14]
[341365129,1730838643957,-500.0,0.00041095,14]
[341365131,1730838643968,-500.0,0.00041095,14]
[341365133,1730838643978,-500.0,0.00041095,14]
[341365135,1730838643987,-500.0,0.00041095,14]
[341365137,1730838643996,-500.0,0.00041095,14]
[341365149,1730838644102,-500.0,0.00041095,14]
[341365151,1730838644112,-500.0,0.00041095,14]
[341365153,1730838644121,-500.0,0.00041095,14]
[341365155,1730838644131,-500.0,0.00041095,14]
[341365157,1730838644140,-500.0,0.00041095,14]
[341365159,1730838644151,-500.0,0.00041095,14]
[341365162,1730838644162,-500.0,0.00041095,14]
[341365164,1730838644171,-249.21738873,0.00041095,14]
[341365166,1730838644181,-500.0,0.00041095,14]
[341365168,1730838644190,-500.0,0.00041095,14]
[341365170,1730838644199,-500.0,0.00041095,14]
[341365172,1730838644209,-500.0,0.00041095,14]
[341365174,1730838644219,-168.91,0.00041095,14]
[341365176,1730838644229,-401.20031255,0.00041095,14]
[341365178,1730838644237,-500.0,0.00041095,14]
[341365180,1730838644247,-505.59435837,0.00041095,14]
[341365182,1730838644256,-500.0,0.00041095,10]
[341365183,1730838644265,-500.0,0.00041095,14]
[341365185,1730838644274,-500.0,0.00041095,14]
[341365188,1730838644284,-500.0,0.00041095,14]
[341365190,1730838644293,-500.0,0.00041095,14]
[341365191,1730838644302,-500.0,0.00041095,14]
[341365193,1730838644311,-500.0,0.00041095,14]
[341365195,1730838644320,-280.16,0.00041095,14]
[341365198,1730838644330,-500.0,0.00041095,14]
[341365200,1730838644340,-500.0,0.00041095,14]
[341365202,1730838644349,-500.0,0.00041095,14]
[341365204,1730838644358,-531.73827452,0.00041095,14]
[341365206,1730838644368,-500.0,0.00041095,14]
[341365207,1730838644379,-500.0,0.00041095,14]
[341365209,1730838644388,-500.0,0.00041095,14]
[341365211,1730838644398,-500.0,0.00041095,14]
[341365213,1730838644407,-221.46,0.00041095,14]
[341365215,1730838644417,-500.0,0.00041095,120]
[341365217,1730838644426,-500.0,0.00041095,120]
[341365219,1730838644435,-500.0,0.00041095,14]
[341365221,1730838644444,-500.0,0.00041095,14]
[341365223,1730838644453,-500.0,0.00041095,14]
[341365226,1730838644463,-500.0,0.00041095,14]
[341365228,1730838644476,-500.0,0.00041095,14]
[341365230,1730838644485,-500.0,0.00041095,14]
[341365232,1730838644495,-500.0,0.00041095,14]
[341365234,1730838644503,-500.0,0.00041095,14]
[341365236,1730838644514,-500.0,0.00041095,14]
[341365238,1730838644523,-500.0,0.00041095,14]
[341365240,1730838644532,-500.0,0.00041095,14]
[341365242,1730838644541,-500.0,0.00041095,14]
[341365244,1730838644554,-488.75645719,0.00041095,14]
[341365246,1730838644566,-500.0,0.00041095,14]
[341365248,1730838644575,-500.0,0.00041095,14]
[341365250,1730838644585,-500.0,0.00041095,14]
[341365252,1730838644594,-500.0,0.00041095,14]
[341365254,1730838644603,-500.0,0.00041095,14]
[341365256,1730838644612,-500.0,0.00041095,14]
[341365258,1730838644622,-500.0,0.00041095,14]
[341365260,1730838644632,-500.0,0.00041095,14]
[341365262,1730838644641,-500.0,0.00041095,14]
[341365264,1730838644650,-500.0,0.00041095,14]
[341365266,1730838644660,-500.0,0.00041095,14]
[341365268,1730838644669,-500.0,0.00041095,14]
[341365270,1730838644678,-500.0,0.00041095,14]
[341365272,1730838644687,-500.0,0.00041095,14]
[341365274,1730838644696,-500.0,0.00041095,14]
[341365276,1730838644706,-500.0,0.00041095,14]
[341365278,1730838644715,-500.0,0.00041095,14]
[341365280,1730838644724,-500.0,0.00041095,14]
[341365282,1730838644734,-500.0,0.00041095,14]
[341365284,1730838644743,-511.06075661,0.00041095,14]
[341365286,1730838644752,-500.0,0.00041095,14]
[341365287,1730838644761,-502.73674925,0.00041095,14]
[341365289,1730838644771,-509.91823727,0.00041095,14]
[341365292,1730838644780,-500.0,0.00041095,14]
[341365293,1730838644789,-500.0,0.00041095,14]
[341365295,1730838644798,-500.0,0.00041095,14]
[341365297,1730838644808,-500.0,0.00041095,14]
[341365298,1730838644817,-435.85726154,0.00041095,14]
[341365299,1730838644827,-500.0,0.00041095,14]
[341365300,1730838644836,-348.06,0.000411,2]
[341365301,1730838644846,-214.1427604,0.00041178,30]
[341365302,1730838644855,-500.0,0.00041195,14]
[341365303,1730838644865,-500.0,0.00041195,14]
[341365304,1730838644875,-500.0,0.00041195,14]
[341365305,1730838644885,-500.0,0.00041195,14]
[341365306,1730838644895,-500.0,0.00041195,14]
[341365307,1730838644904,-500.0,0.00041195,14]
[341365309,1730838644914,-500.0,0.00041195,14]
[341365311,1730838644924,-500.0,0.00041195,14]
[341365314,1730838644941,-500.0,0.00041206,14]
[341365316,1730838644952,-500.0,0.00041206,14]
[341365318,1730838644962,-500.0,0.00041206,120]
[341365320,1730838644972,-500.0,0.00041206,14]
[341365322,1730838644982,-500.0,0.00041206,14]
[341365324,1730838644991,-1144.0,0.00041207,2]
[341365326,1730838645000,-528.0,0.00041207,2]
[341365328,1730838645010,-2394.0,0.00041207,2]
[341365330,1730838645020,-200.494,0.00041207,2]
[341365332,1730838645029,-1005.8519546,0.00041545,7]
[341365334,1730838645039,-1092.04720937,0.00041896,10]
[341365336,1730838645050,-500.0,0.000419,2]
[341365338,1730838645061,-382.13814575,0.000419,120]
[341365340,1730838645071,-265.75,0.00041917,120]
[341365342,1730838645080,-500.0,0.00041972,14]
[341365344,1730838645090,-500.0,0.00041973,10]
[341365346,1730838645099,-500.0,0.00041973,10]
[341365348,1730838645109,-500.21729308,0.00041973,10]
[341365350,1730838645119,-500.0,0.00041973,10]
[341365352,1730838645129,-500.0,0.00041995,14]
[341365354,1730838645138,-211.98395702,0.00041996,2]
[341365356,1730838645148,-500.0,0.00041997,14]
[341365358,1730838645157,-500.0,0.00041997,14]
[341365360,1730838645167,-500.0,0.00041997,14]
[341365362,1730838645176,-500.0,0.00041997,14]
[341365364,1730838645187,-500.0,0.00041997,14]
[341365367,1730838645197,-500.0,0.00041997,14]
[341365370,1730838645206,-500.0,0.00041997,14]
[341365372,1730838645215,-500.0,0.00041998,14]
[341365375,1730838645225,-500.0,0.00041999,14]
[341365377,1730838645235,-500.0,0.00041999,14]
[341365380,1730838645245,-500.0,0.00041999,14]
[341365383,1730838645254,-500.0,0.00041999,14]
[341365385,1730838645264,-500.0,0.00041999,14]
[341365387,1730838645274,-214.7362,0.00041999,14]
[341365389,1730838645283,-500.0,0.00041999,14]
[341365390,1730838645293,-500.0,0.00041999,14]
[341365391,1730838645303,-500.0,0.00041999,14]
[341365392,1730838645313,-500.0,0.00041999,14]
[341365393,1730838645322,-500.0,0.00041999,14]
[341365394,1730838645331,-168.34,0.00041999,14]
[341365395,1730838645341,-500.0,0.00041999,14]
[341365396,1730838645350,-500.0,0.00041999,14]
[341365397,1730838645359,-634.4,0.00041999,14]
[341365398,1730838645368,-500.0,0.00041999,14]
[341365399,1730838645379,-500.0,0.00041999,14]
[341365400,1730838645389,-313.64,0.00041999,14]
[341365402,1730838645399,-500.0,0.00041999,14]
[341365403,1730838645409,-500.0,0.00041999,14]
[341365404,1730838645419,-500.0,0.00041999,14]
[341365406,1730838645428,-627.38,0.00041999,14]
[341365407,1730838645438,-500.0,0.00041999,14]
[341365409,1730838645448,-500.0,0.00041999,14]
[341365410,1730838645458,-456.15044429,0.00041999,14]
[341365412,1730838645469,-500.0,0.00041999,120]
[341365414,1730838645480,-500.0,0.00041999,14]
[341365416,1730838645490,-168.39,0.00041999,14]
[341365417,1730838645499,-500.0,0.00041999,14]
[341365419,1730838645508,-999.0,0.00041999,120]
[341365420,1730838645519,-500.0,0.00041999,14]
[341365422,1730838645530,-500.0,0.00041999,14]
[341365424,1730838645540,-447.09,0.00041999,14]
[341365425,1730838645554,-571.05,0.00041999,14]
[341365427,1730838645564,-500.0,0.00041999,14]
[341365429,1730838645574,-500.0,0.00041999,14]
[341365430,1730838645584,-418.40790312,0.00041999,31]
[341365432,1730838645594,-526.91350979,0.00041999,31]
[341365433,1730838645604,-222.80849711,0.00041999,31]
[341365435,1730838645616,-500.0,0.00041999,14]
[341365436,1730838645627,-500.0,0.00041999,14]
[341365437,1730838645637,-785925.32287088,0.00042,30]
[341365438,1730838645647,-3882936.73810212,0.00042,30]
[341365439,1730838645658,-175025.00377333,0.00042,30]
[341365447,1730838673039,160.0,0.00024658,2]
[341365448,1730838737916,168.364289,0.00034147,2]
[341365449,1730839096175,175.352471,0.00013973,2]
[341365450,1730839116645,520.83333333,0.00020816,2]
[341365451,1730839635128,-520.83333333,0.00023519,2]
[341365452,1730839635149,-1403.32436958,0.00026532,2]
[341365453,1730839651085,-834.53688812,0.00026532,2]
[341365454,1730839651108,-156.65758258,0.0002696,2]
[341365455,1730839651131,-57.51354699,0.0002696,2]
[341365456,1730839652094,-418.86772492,0.0002696,2]
[341365457,1730839654095,-95.50400543,0.0002696,2]
[341365458,1730839654121,-15961.3061106,0.00026961,2]
[341365459,1730839669317,-170.32803609,0.00028061,18]
[341365460,1730839669342,-192.588683,0.00032877,120]
[341365461,1730839669368,-3451.4394282,0.000382,109]
[341365462,1730839669392,-3451.4394282,0.000382,109]
[341365463,1730839669416,-3451.4394282,0.000382,109]
[341365464,1730839669442,-3451.4394282,0.000382,109]
[341365465,1730839669465,-158.40841799,0.000399,32]
[341365466,1730839669489,-678.67176946,0.00040003,28]
[341365467,1730839669514,-170.25,0.00041,120]
[341365468,1730839669540,-78846.68448721,0.00041,10]
[341365469,1730839669565,-362.6,0.00041085,10]
[341365470,1730839669590,-302.17,0.00041085,10]
[341365471,1730839669615,-251.8,0.00041085,10]
[341365472,1730839669640,-999.0,0.00041094,120]
[341365473,1730839669664,-508.47452684,0.00041095,14]
[341365474,1730839669690,-574.16519637,0.00041095,14]
[341365475,1730839669713,-500.0,0.00041095,14]
[341365476,1730839669737,-372.52263739,0.00041095,14]
[341365477,1730839669761,-500.0,0.00041095,14]
[341365478,1730839669784,-500.0,0.00041095,14]
[341365479,1730839669807,-501.91972121,0.00041095,14]
[341365480,1730839669831,-500.0,0.00041095,14]
[341365481,1730839669854,-501.5446585,0.00041095,14]
[341365482,1730839669878,-522.20351646,0.00041095,14]
[341365483,1730839669901,-237.5872132,0.00041095,14]
[341365484,1730839669925,-506.80494997,0.00041095,14]
[341365485,1730839669952,-507.94176831,0.00041095,14]
[341365486,1730839669979,-500.0,0.00041095,14]
[341365487,1730839670003,-504.59804816,0.00041095,14]
[341365488,1730839670029,-500.0,0.00041095,14]
[341365489,1730839670052,-500.0,0.00041095,14]
[341365490,1730839670075,-500.0,0.00041095,14]
[341365491,1730839670099,-500.0,0.00041095,14]
[341365492,1730839670124,-500.0,0.00041095,14]
[341365493,1730839670147,-323.84159283,0.00041095,14]
[341365494,1730839670171,-500.0,0.00041095,14]
[341365495,1730839670194,-500.0,0.00041095,14]
[341365496,1730839670217,-500.0,0.00041095,14]
[341365497,1730839670241,-500.0,0.00041095,14]
[341365498,1730839670264,-500.0,0.00041095,14]
[341365499,1730839670287,-500.0,0.00041095,14]
[341365500,1730839670311,-500.0,0.00041095,14]
[341365501,1730839670335,-500.0,0.00041095,14]
[341365502,1730839670360,-500.0,0.00041095,14]
[341365503,1730839670384,-500.0,0.00041095,14]
[341365504,1730839670409,-518.02254518,0.00041095,14]
[341365505,1730839670433,-500.0,0.00041095,14]
[341365506,1730839670457,-500.0,0.00041095,14]
[341365507,1730839670481,-500.0,0.00041095,14]
[341365508,1730839670505,-500.0,0.00041095,10]
[341365509,1730839670530,-500.0,0.00041095,14]
[341365510,1730839670554,-506.91562552,0.00041095,14]
[341365511,1730839670581,-500.0,0.00041095,14]
[341365512,1730839670605,-523.0922346,0.00041095,14]
[341365513,1730839670628,-503.22874629,0.00041095,14]
[341365514,1730839670652,-502.25672124,0.00041095,14]
[341365515,1730839670679,-508.14852126,0.00041095,14]
[341365516,1730839670703,-500.0,0.00041095,14]
[341365517,1730839670816,-500.0,0.00041095,14]
[341365518,1730839670839,-200.0,0.00041095,14]
[341365519,1730839670863,-500.0,0.00041095,14]
[341365520,1730839670887,-500.0,0.00041095,14]
[341365521,1730839670909,-500.0,0.00041095,14]
[341365522,1730839670934,-506.74432512,0.00041095,14]
[341365523,1730839670965,-509.56870581,0.00041095,14]
[341365524,1730839670990,-506.1331125,0.00041095,14]
[341365525,1730839671014,-500.0,0.00041095,14]
[341365526,1730839671037,-500.0,0.00041095,14]
[341365527,1730839671061,-360.56927609,0.00041095,14]
[341365528,1730839671085,-525.84708471,0.00041095,14]
[341365529,1730839671109,-509.09127653,0.00041095,14]
[341365530,1730839671132,-500.0,0.00041095,14]
[341365531,1730839671156,-500.0,0.00041095,14]
[341365532,1730839671183,-500.0,0.00041095,14]
[341365533,1730839671208,-500.0,0.00041095,14]
[341365534,1730839671231,-635.51,0.00041095,14]
[341365535,1730839671255,-500.0,0.00041095,14]
[341365536,1730839671278,-500.0,0.00041095,14]
[341365537,1730839671301,-500.0,0.00041095,14]
[341365538,1730839671324,-500.0,0.00041095,14]
[341365539,1730839671348,-500.0,0.00041095,14]
[341365540,1730839671373,-202.2433957,0.00041095,14]
[341365541,1730839671397,-500.0,0.00041095,14]
[341365542,1730839671424,-508.06677001,0.00041095,14]
[341365543,1730839671448,-516.05753601,0.00041095,14]
[341365544,1730839671473,-500.0,0.00041095,14]
[341365545,1730839671497,-515.23362117,0.00041095,14]
[341365546,1730839671520,-288.43515908,0.00041095,14]
[341365547,1730839671544,-500.0,0.00041095,14]
[341365548,1730839671568,-517.99046643,0.00041095,14]
[341365549,1730839671593,-510.05901299,0.00041095,14]
[341365550,1730839671616,-500.0,0.00041095,14]
[341365551,1730839671639,-500.0,0.00041095,14]
[341365552,1730839671662,-504.60785418,0.00041095,14]
[341365553,1730839671688,-263.69592161,0.00041095,14]
[341365554,1730839671713,-504.06978989,0.00041095,14]
[341365555,1730839671737,-368.41315284,0.00041095,14]
[341365556,1730839671762,-500.0,0.00041095,14]
[341365557,1730839671788,-500.0,0.00041095,14]
[341365558,1730839671812,-508.85776512,0.00041095,14]
[341365559,1730839671836,-513.8951401,0.00041095,14]
[341365560,1730839671867,-510.10583659,0.00041095,14]
[341365561,1730839671897,-522.86,0.00041095,14]
[341365562,1730839671928,-501.79310876,0.00041095,14]
[341365563,1730839671957,-501.82290906,0.00041095,14]
[341365564,1730839671987,-512.31636041,0.00041095,14]
[341365565,1730839672017,-508.00597934,0.00041095,14]
[341365566,1730839672047,-503.73895507,0.00041095,14]
[341365567,1730839672075,-510.81528325,0.00041095,14]
[341365568,1730839672105,-501.56800331,0.00041095,14]
[341365569,1730839672134,-500.0,0.00041095,14]
[341365570,1730839672162,-514.12348022,0.00041095,14]
[341365571,1730839672190,-344.54970894,0.00041095,14]
[341365572,1730839672217,-503.18959179,0.00041095,14]
[341365573,1730839672245,-507.7027929,0.00041095,14]
[341365574,1730839672273,-511.87662635,0.00041095,14]
[341365575,1730839672300,-508.485802,0.00041095,14]
[341365576,1730839672326,-500.0,0.00041095,14]
[341365577,1730839672352,-506.56757609,0.00041095,14]
[341365578,1730839672378,-502.05354836,0.00041095,14]
[341365579,1730839672407,-515.9757387,0.00041095,14]
[341365580,1730839672437,-505.67905592,0.00041095,14]
[341365581,1730839672464,-606.0298968,0.00041095,14]
[341365582,1730839672492,-500.0,0.00041095,14]
[341365583,1730839672521,-506.26049178,0.00041095,14]
[341365584,1730839672550,-501.0,0.00041095,14]
[341365585,1730839672577,-500.0,0.00041095,14]
[341365586,1730839672602,-500.0,0.00041095,14]
[341365587,1730839672627,-500.0,0.00041095,14]
[341365588,1730839672653,-354.51537615,0.00041095,14]
[341365589,1730839672682,-508.81686657,0.00041095,14]
[341365590,1730839672709,-500.0,0.00041095,14]
[341365591,1730839672735,-506.10672077,0.00041095,14]
[341365592,1730839672760,-500.0,0.00041095,14]
[341365593,1730839672788,-500.0,0.00041095,14]
[341365594,1730839672814,-500.0,0.00041095,14]
[341365595,1730839672842,-500.0,0.00041095,14]
[341365596,1730839672872,-500.0,0.00041095,14]
[341365597,1730839672899,-500.0,0.00041095,14]
[341365598,1730839672926,-500.0,0.00041095,14]
[341365599,1730839672954,-503.92537894,0.00041095,14]
[341365600,1730839672980,-500.0,0.00041095,14]
[341365601,1730839673006,-500.0,0.00041095,14]
[341365602,1730839673144,-500.0,0.00041095,14]
[341365603,1730839673173,-500.0,0.00041095,14]
[341365604,1730839673199,-500.0,0.00041095,14]
[341365605,1730839673224,-500.0,0.00041095,14]
[341365606,1730839673248,-507.42442783,0.00041095,14]
[341365607,1730839673274,-500.0,0.00041095,14]
[341365608,1730839673297,-573.23846542,0.00041095,14]
[341365609,1730839673321,-500.0,0.00041095,14]
[341365610,1730839673345,-500.0,0.00041095,14]
[341365611,1730839673370,-501.3390535,0.00041095,14]
[341365612,1730839673394,-240.27301148,0.00041095,14]
[341365613,1730839673419,-500.0,0.00041095,14]
[341365614,1730839673445,-500.0,0.00041095,14]
[341365615,1730839673469,-500.0,0.00041095,14]
[341365616,1730839673494,-500.0,0.00041095,14]
[341365617,1730839673518,-500.0,0.00041095,10]
[341365618,1730839673543,-500.0,0.00041095,14]
[341365619,1730839673567,-250.0,0.00041095,14]
[341365620,1730839673591,-505.55887462,0.00041095,14]
[341365621,1730839673616,-500.0,0.00041095,14]
[341365622,1730839673639,-500.8260841,0.00041095,14]
[341365623,1730839673664,-500.0,0.00041095,14]
[341365624,1730839673689,-502.02890014,0.00041095,14]
[341365625,1730839673713,-500.0,0.00041095,14]
[341365626,1730839673737,-500.0,0.00041095,14]
[341365627,1730839673761,-500.0,0.00041095,14]
[341365628,1730839673785,-500.0,0.00041095,14]
[341365629,1730839673808,-500.0,0.00041095,14]
[341365630,1730839673831,-502.46448374,0.00041095,14]
[341365631,1730839673855,-500.0,0.00041095,14]
[341365632,1730839673878,-502.09510416,0.00041095,14]
[341365633,1730839673901,-500.0,0.00041095,14]
[341365634,1730839673927,-500.0,0.00041095,14]
[341365635,1730839673954,-500.0,0.00041095,14]
[341365636,1730839673977,-500.0,0.00041095,14]
[341365637,1730839674002,-500.0,0.00041095,14]
[341365638,1730839674026,-501.3037875,0.00041095,14]
[341365639,1730839674050,-500.0,0.00041095,14]
[341365640,1730839674074,-500.0,0.00041095,14]
[341365641,1730839674098,-500.0,0.00041095,14]
[341365642,1730839674121,-500.0,0.00041095,14]
[341365643,1730839674144,-500.0,0.00041095,14]
[341365644,1730839674169,-500.0,0.00041095,14]
[341365645,1730839674193,-500.0,0.00041095,14]
[341365646,1730839674217,-500.0,0.00041095,14]
[341365647,1730839674241,-500.0,0.00041095,14]
[341365648,1730839674264,-500.0,0.00041095,14]
[341365649,1730839674289,-500.0,0.00041095,14]
[341365650,1730839674313,-500.0,0.00041095,14]
[341365651,1730839674338,-500.0,0.00041095,14]
[341365652,1730839674362,-500.0,0.00041095,14]
[341365653,1730839674386,-500.90247446,0.00041095,14]
[341365654,1730839674411,-500.0,0.00041095,14]
[341365655,1730839674436,-500.0,0.00041095,14]
[341365656,1730839674460,-500.0,0.00041095,14]
[341365657,1730839674483,-506.35253041,0.00041095,14]
[341365658,1730839674509,-477.23380652,0.00041095,14]
[341365659,1730839674533,-500.0,0.00041095,14]
[341365660,1730839674557,-500.0,0.00041095,14]
[341365661,1730839674581,-500.0,0.00041095,14]
[341365662,1730839674605,-500.0,0.00041095,14]
[341365663,1730839674628,-500.0,0.00041095,14]
[341365664,1730839674652,-500.0,0.00041095,14]
[341365665,1730839674675,-500.0,0.00041095,14]
[341365666,1730839674698,-500.0,0.00041095,14]
[341365667,1730839674722,-500.0,0.00041095,14]
[341365668,1730839674746,-500.0,0.00041095,14]
[341365669,1730839674768,-500.0,0.00041095,14]
[341365670,1730839674792,-500.0,0.00041095,14]
[341365671,1730839674814,-500.0,0.00041095,14]
[341365672,1730839674841,-500.0,0.00041095,14]
[341365673,1730839674864,-500.0,0.00041095,14]
[341365674,1730839674887,-500.0,0.00041095,14]
[341365675,1730839674910,-500.0,0.00041095,14]
[341365676,1730839674933,-500.0,0.00041095,14]
[341365677,1730839674960,-500.0,0.00041095,14]
[341365678,1730839674986,-500.0,0.00041095,14]
[341365679,1730839675009,-500.0,0.00041095,14]
[341365680,1730839675033,-500.0,0.00041095,14]
[341365681,1730839675057,-500.0,0.00041095,14]
[341365682,1730839675080,-500.0,0.00041095,14]
[341365683,1730839675104,-500.0,0.00041095,14]
[341365684,1730839675128,-500.0,0.00041095,14]
[341365685,1730839675151,-271.77081097,0.00041095,14]
[341365686,1730839675176,-500.0,0.00041095,14]
[341365687,1730839675201,-500.0,0.00041095,14]
[341365688,1730839675224,-500.0,0.00041095,14]
[341365689,1730839675248,-510.87994634,0.00041095,14]
[341365690,1730839675273,-500.0,0.00041095,14]
[341365691,1730839675297,-500.0,0.00041095,14]
[341365692,1730839675322,-500.0,0.00041095,14]
[341365693,1730839675347,-500.0,0.00041095,14]
[341365694,1730839675372,-500.0,0.00041095,14]
[341365695,1730839675397,-500.0,0.00041095,14]
[341365696,1730839675505,-500.0,0.00041095,14]
[341365697,1730839675530,-500.0,0.00041095,14]